fUSD/lending_fUSD_20260116
["ID","MTS","AMOUNT","RATE_DAILY","PERIOD"]
[402160480,1768553750457,-982.01,0.00040821,10]
[402160481,1768553750475,-1431.59,0.00040821,10]
[402160482,1768553750489,-582.81,0.00040821,10]
[402160483,1768553750504,-1103.68,0.00040821,30]
[402160484,1768553750519,-500.0,0.00040821,10]
[402160485,1768553750533,-500.0,0.00040821,10]
[402160486,1768553750548,-872.15,0.00040821,10]
[402160487,1768553750562,-703.99,0.00040821,10]
[402160488,1768553750578,-548.64,0.00040821,10]
[402160489,1768553750592,-850.54,0.00040821,10]
[402160490,1768553750607,-1034.71,0.00040821,10]
[402160491,1768553750626,-500.0,0.00040821,10]
[402160492,1768553750641,-287.23468473,0.00040821,10]
[402160493,1768553750661,-712.34,0.00040821,10]
[402160494,1768553750678,-500.0,0.00040821,10]
[402160495,1768553750694,-1048.59,0.00040821,10]
[402160496,1768553750710,-797.78,0.00040821,10]
[402160497,1768553750723,-864.57,0.00040821,10]
[402160498,1768553750739,-585.18492217,0.00040821,10]
[402160499,1768553750753,-669.34,0.00040821,10]
[402160500,1768553750767,-500.0,0.00040821,10]
[402160501,1768553750781,-1695.98,0.00040821,10]
[402160502,1768553750794,-710.63,0.00040821,10]
[402160503,1768553750809,-746.93,0.00040821,10]
[402160504,1768553750826,-576.53,0.00040821,10]
[402160505,1768553750841,-551.55,0.00040821,10]
[402160506,1768553750856,-848.31,0.00040821,10]
[402160507,1768553750871,-500.0,0.00040821,10]
[402160508,1768553750886,-640.15,0.00040821,10]
[402160509,1768553750903,-829.07,0.00040821,10]
[402160510,1768553750918,-893.03,0.00040821,10]
[402160511,1768553750933,-1044.65,0.00040821,2]
[402160512,1768553750949,-580.09,0.00040821,10]
[402160513,1768553750964,-2280.83,0.00040821,10]
[402160514,1768553750977,-950.38,0.00040821,10]
[402160515,1768553750992,-925.85,0.00040821,10]
[402160516,1768553751009,-926.38,0.00040821,10]
[402160517,1768553751026,-1091.37,0.00040821,10]
[402160518,1768553751041,-934.74,0.00040821,10]
[402160519,1768553751055,-1096.7,0.00040821,10]
[402160520,1768553751070,-615.77,0.00040821,10]
[402160521,1768553751085,-694.36,0.00040821,10]
[402160522,1768553751098,-816.08,0.00040821,10]
[402160523,1768553751113,-703.54,0.00040821,10]
[402160524,1768553751127,-2000.78,0.00040821,10]
[402160525,1768553751142,-1150.42,0.00040821,10]
[402160526,1768553751158,-658.36,0.00040821,10]
[402160527,1768553751175,-788.58,0.00040821,10]
[402160528,1768553751192,-578.18,0.00040821,10]
[402160529,1768553751208,-1428.02,0.00040821,10]
[402160530,1768553751225,-500.0,0.00040821,10]
[402160531,1768553751240,-705.82,0.00040821,10]
[402160532,1768553751255,-931.05,0.00040821,10]
[402160533,1768553751271,-577.64,0.00040821,10]
[402160534,1768553751285,-528.44,0.00040821,10]
[402160535,1768553751302,-2108.45,0.00040821,10]
[402160536,1768553751317,-1149.82,0.00040821,10]
[402160537,1768553751333,-500.0,0.00040821,10]
[402160538,1768553751350,-683.35,0.00040821,10]
[402160539,1768553751366,-959.04,0.00040821,10]
[402160540,1768553751384,-464.35248791,0.00040821,10]
[402160541,1768553751399,-700.17,0.00040821,10]
[402160542,1768553751413,-625.74,0.00040821,10]
[402160543,1768553751428,-754.4,0.00040821,10]
[402160544,1768553751444,-500.0,0.00040821,10]
[402160545,1768553751460,-737.5,0.00040821,10]
[402160546,1768553751474,-625.2,0.00040821,10]
[402160547,1768553751489,-641.84,0.00040821,10]
[402160548,1768553751505,-610.78,0.00040821,10]
[402160549,1768553751523,-544.89,0.00040821,10]
[402160550,1768553751539,-523.76,0.00040821,10]
[402160551,1768553751556,-637.87,0.00040821,10]
[402160552,1768553751573,-357.14673344,0.00040821,10]
[402160553,1768553751590,-551.65,0.00040821,10]
[402160554,1768553751606,-1594.08,0.00040821,10]
[402160555,1768553751623,-796.44,0.00040821,10]
[402160556,1768553751639,-500.0,0.00040821,10]
[402160557,1768553751655,-1146.06,0.00040821,10]
[402160558,1768553751671,-500.0,0.00040821,10]
[402160559,1768553751689,-567.16,0.00040821,10]
[402160560,1768553751704,-500.0,0.00040821,10]
[402160561,1768553751720,-522.75,0.00040821,10]
[402160562,1768553751735,-517.33,0.00040821,10]
[402160563,1768553751752,-500.0,0.00040821,10]
[402160564,1768553751767,-193.3,0.00040821,10]
[402160565,1768553751783,-751.2,0.00040821,10]
[402160566,1768553751798,-662.29,0.00040821,10]
[402160567,1768553751814,-669.08,0.00040821,10]
[402160568,1768553751829,-500.0,0.00040821,10]
[402160569,1768553751843,-677.54,0.00040821,10]
[402160570,1768553751857,-1168.86,0.00040821,10]
[402160571,1768553751871,-1117.06,0.00040821,10]
[402160572,1768553751887,-1648.88,0.00040821,10]
[402160573,1768553751902,-636.52,0.00040821,10]
[402160574,1768553751919,-636.43,0.00040821,10]
[402160575,1768553751934,-575.94,0.00040821,10]
[402160576,1768553751953,-716.91,0.00040821,10]
[402160577,1768553751968,-876.77,0.00040821,10]
[402160578,1768553751982,-500.0,0.00040821,10]
[402160579,1768553751996,-990.78,0.00040821,10]
[402160580,1768553752010,-1150.93,0.00040821,10]
[402160581,1768553752024,-909.88,0.00040821,10]
[402160582,1768553752038,-541.15,0.00040821,10]
[402160583,1768553752053,-500.0,0.00040821,10]
[402160584,1768553752067,-527.48,0.00040821,10]
[402160585,1768553752081,-500.0,0.00040821,10]
[402160586,1768553752095,-744.14,0.00040821,10]
[402160587,1768553752109,-903.48,0.00040821,10]
[402160588,1768553752123,-507.96,0.00040821,10]
[402160589,1768553752137,-662.66,0.00040821,10]
[402160590,1768553752157,-690.13,0.00040821,10]
[402160591,1768553752171,-519.9,0.00040821,10]
[402160592,1768553752185,-1521.24,0.00040821,10]
[402160593,1768553752199,-823.6,0.00040821,10]
[402160594,1768553752213,-500.0,0.00040821,10]
[402160595,1768553752227,-500.0,0.00040821,10]
[402160596,1768553752241,-1331.43,0.00040821,10]
[402160597,1768553752256,-732.95,0.00040821,10]
[402160598,1768553752270,-1326.59,0.00040821,10]
[402160599,1768553752284,-1280.38,0.00040821,10]
[402160600,1768553752297,-791.99,0.00040821,10]
[402160601,1768553752310,-500.0,0.00040821,10]
[402160602,1768553752324,-512.72,0.00040821,10]
[402160603,1768553752337,-979.74,0.00040821,10]
[402160604,1768553752352,-500.0,0.00040821,10]
[402160605,1768553752368,-644.37,0.00040821,10]
[402160606,1768553752382,-577.2,0.00040821,10]
[402160607,1768553752397,-970.71,0.00040821,10]
[402160608,1768553752412,-570.0,0.00040821,10]
[402160609,1768553752428,-500.0,0.00040821,10]
[402160610,1768553752442,-500.0,0.00040821,10]
[402160611,1768553752455,-751.52,0.00040821,10]
[402160612,1768553752469,-1015.29,0.00040821,10]
[402160613,1768553752483,-685.85,0.00040821,10]
[402160614,1768553752496,-518.25,0.00040821,10]
[402160615,1768553752510,-612.29,0.00040821,10]
[402160616,1768553752524,-500.0,0.00040821,10]
[402160617,1768553752537,-806.51,0.00040821,10]
[402160618,1768553752552,-695.39,0.00040821,10]
[402160619,1768553752567,-607.83,0.00040821,10]
[402160620,1768553752585,-549.65,0.00040821,10]
[402160621,1768553752600,-500.0,0.00040821,10]
[402160622,1768553752614,-1220.06,0.00040821,10]
[402160623,1768553752629,-1662.06,0.00040821,10]
[402160624,1768553752643,-1639.22,0.00040821,10]
[402160625,1768553752659,-908.6,0.00040821,10]
[402160626,1768553752673,-1617.91,0.00040821,10]
[402160627,1768553752686,-1143.12,0.00040821,10]
[402160628,1768553752700,-500.0,0.00040821,10]
[402160629,1768553752713,-816.75,0.00040821,10]
[402160630,1768553752729,-500.0,0.00040821,10]
[402160631,1768553752743,-500.0,0.00040821,10]
[402160632,1768553752759,-716.45,0.00040821,10]
[402160633,1768553752774,-500.0,0.00040821,10]
[402160634,1768553752787,-885.26,0.00040821,10]
[402160635,1768553752800,-678.11,0.00040821,10]
[402160636,1768553752815,-1027.78,0.00040821,10]
[402160637,1768553752829,-1096.77,0.00040821,10]
[402160638,1768553752842,-702.08,0.00040821,10]
[402160639,1768553752856,-681.79,0.00040821,10]
[402160640,1768553752871,-1477.47,0.00040821,10]
[402160641,1768553752887,-401.33455257,0.00040821,10]
[402160642,1768553752901,-989.99,0.00040821,10]
[402160643,1768553752917,-676.3,0.00040821,10]
[402160644,1768553752932,-500.0,0.00040821,10]
[402160645,1768553752946,-500.0,0.00040821,10]
[402160646,1768553752961,-912.84,0.00040821,10]
[402160647,1768553752975,-807.54,0.00040821,10]
[402160648,1768553752990,-591.47,0.00040821,10]
[402160649,1768553753003,-1293.68,0.00040821,10]
[402160650,1768553753018,-500.0,0.00040821,10]
[402160651,1768553753035,-618.86,0.00040821,10]
[402160652,1768553753051,-834.67,0.00040821,10]
[402160653,1768553753066,-219.63606853,0.00040821,10]
[402160654,1768553753083,-4949.68,0.00040821,10]
[402160655,1768553753096,-1730.65,0.00040821,10]
[402160656,1768553753110,-500.46,0.00040821,10]
[402160657,1768553753124,-930.98,0.00040821,10]
[402160658,1768553753138,-875.62,0.00040821,10]
[402160659,1768553753152,-500.0,0.00040821,10]
[402160660,1768553753167,-500.0,0.00040821,10]
[402160661,1768553753181,-1041.0,0.00040821,10]
[402160662,1768553753197,-500.0,0.00040821,10]
[402160663,1768553753213,-1262.31,0.00040821,10]
[402160664,1768553753228,-524.92,0.00040821,10]
[402160665,1768553753245,-591.83,0.00040821,10]
[402160666,1768553753260,-614.68,0.00040821,10]
[402160667,1768553753274,-1848.72,0.00040821,10]
[402160668,1768553753289,-790.99,0.00040821,10]
[402160669,1768553753303,-327.97983256,0.00040821,10]
[402160670,1768553753318,-353.65,0.00040821,2]
[402160671,1768553753332,-1044.21,0.00040821,10]
[402160672,1768553753348,-1947.44,0.00040821,10]
[402160673,1768553753365,-500.0,0.00040821,10]
[402160674,1768553753380,-629.32,0.00040821,10]
[402160675,1768553753396,-1553.42,0.00040821,10]
[402160676,1768553753412,-1024.82,0.00040821,10]
[402160677,1768553753426,-795.66,0.00040821,10]
[402160678,1768553753441,-1036.49,0.00040821,10]
[402160679,1768553753455,-1013.98,0.00040821,10]
[402160680,1768553753471,-875.71,0.00040821,10]
[402160681,1768553753485,-548.64,0.00040821,10]
[402160682,1768553753501,-1422.5,0.00040821,10]
[402160683,1768553753516,-562.25,0.00040821,10]
[402160684,1768553753531,-543.96,0.00040821,10]
[402160685,1768553753546,-1126.68,0.00040821,10]
[402160686,1768553753561,-2121.76,0.00040821,10]
[402160687,1768553753577,-532.76,0.00040821,10]
[402160688,1768553753593,-1905.23,0.00040821,10]
[402160689,1768553753608,-502.52,0.00040821,10]
[402160690,1768553753623,-540.07,0.00040821,10]
[402160691,1768553753639,-1016.35,0.00040821,10]
[402160692,1768553753656,-5056.94,0.00040821,10]
[402160693,1768553753671,-592.16,0.00040821,10]
[402160694,1768553753688,-889.56,0.00040821,10]
[402160695,1768553753703,-500.0,0.00040821,10]
[402160696,1768553753717,-1150.45,0.00040821,10]
[402160697,1768553753732,-648.45,0.00040821,10]
[402160698,1768553753745,-1345.33,0.00040821,10]
[402160699,1768553753760,-1052.14,0.00040821,10]
[402160700,1768553753774,-990.43,0.00040821,10]
[402160701,1768553753789,-877.08,0.00040821,10]
[402160702,1768553753806,-1245.81,0.00040821,10]
[402160703,1768553753820,-665.86,0.00040821,10]
[402160704,1768553753835,-1029.8,0.00040821,10]
[402160705,1768553753851,-1298.7,0.00040821,10]
[402160706,1768553753866,-581.72,0.00040821,10]
[402160707,1768553753881,-850.69,0.00040821,10]
[402160708,1768553753896,-995.5,0.00040821,10]
[402160709,1768553753911,-1075.5,0.00040821,10]
[402160710,1768553753925,-519.23,0.00040821,10]
[402160711,1768553753939,-529.03,0.00040821,10]
[402160712,1768553753956,-716.08,0.00040821,10]
[402160713,1768553753972,-500.0,0.00040821,10]
[402160714,1768553753987,-1363.31,0.00040821,10]
[402160715,1768553754003,-598.71,0.00040821,10]
[402160716,1768553754019,-1221.02,0.00040821,10]
[402160717,1768553754034,-823.04,0.00040821,10]
[402160718,1768553754048,-1064.34,0.00040821,10]
[402160719,1768553754062,-551.36457114,0.00040821,10]
[402160720,1768553754077,-2853.19,0.00040821,10]
[402160721,1768553754091,-913.43,0.00040821,10]
[402160722,1768553754107,-591.9,0.00040821,10]
[402160723,1768553754124,-500.0,0.00040821,10]
[402160724,1768553754140,-549.28,0.00040821,10]
[402160725,1768553754157,-2393.97,0.00040821,10]
[402160726,1768553754173,-589.47,0.00040821,10]
[402160727,1768553754189,-2257.21,0.00040821,10]
[402160728,1768553754204,-805.83,0.00040821,10]
[402160729,1768553754219,-546.1,0.00040821,10]
[402160730,1768553754233,-1412.18,0.00040821,10]
[402160731,1768553754247,-500.0,0.00040821,10]
[402160732,1768553754263,-257.89819881,0.00040821,10]
[402160733,1768553754278,-500.0,0.00040821,10]
[402160734,1768553754295,-712.99,0.00040821,10]
[402160735,1768553754309,-661.07,0.00040821,10]
[402160736,1768553754324,-732.11,0.00040821,10]
[402160737,1768553754340,-713.12,0.00040821,10]
[402160738,1768553754354,-652.47,0.00040821,10]
[402160739,1768553754368,-1182.17,0.00040821,10]
[402160740,1768553754383,-693.86,0.00040821,10]
[402160741,1768553754398,-714.22,0.00040821,10]
[402160742,1768553754412,-652.5,0.00040821,10]
[402160743,1768553754427,-1245.62,0.00040821,10]
[402160744,1768553754443,-224.7160557,0.00040821,10]
[402160745,1768553754458,-1497.09,0.00040821,10]
[402160746,1768553754473,-1210.4,0.00040821,10]
[402160747,1768553754504,-1212.59,0.00040821,10]
[402160748,1768553754526,-941.66,0.00040821,10]
[402160749,1768553754546,-1223.9,0.00040821,10]
[402160750,1768553754563,-500.0,0.00040821,10]
[402160751,1768553754583,-1292.5,0.00040821,10]
[402160752,1768553754601,-1141.45,0.00040821,10]
[402160753,1768553754618,-885.86,0.00040821,10]
[402160754,1768553754637,-520.6,0.00040821,10]
[402160755,1768553754656,-3901.38,0.00040821,10]
[402160756,1768553754673,-532.57,0.00040821,10]
[402160757,1768553754689,-1219.5,0.00040821,10]
[402160758,1768553754705,-2909.8,0.00040821,10]
[402160759,1768553754720,-417.36497013,0.00040821,10]
[402160760,1768553754735,-858.87,0.00040821,10]
[402160761,1768553754750,-544.68,0.00040821,10]
[402160762,1768553754765,-993.01,0.00040821,10]
[402160763,1768553754782,-1760.07,0.00040821,10]
[402160764,1768553754799,-553.74,0.00040821,10]
[402160765,1768553754816,-1228.85,0.00040821,10]
[402160766,1768553754832,-500.0,0.00040821,10]
[402160767,1768553754847,-1541.19,0.00040821,10]
[402160769,1768553755590,-599.03,0.00040821,10]
[402160770,1768553755599,-1004.55,0.00040821,10]
[402160771,1768553755608,-1256.3,0.00040821,10]
[402160772,1768553755618,-722.08,0.00040821,10]
[402160773,1768553755629,-1627.41,0.00040821,10]
[402160774,1768553755638,-999.49,0.00040821,10]
[402160775,1768553755648,-1143.9,0.00040821,10]
[402160776,1768553755658,-1224.65,0.00040821,10]
[402160777,1768553755668,-560.6,0.00040821,10]
[402160778,1768553755677,-1155.7,0.00040821,10]
[402160779,1768553755687,-500.0,0.00040821,10]
[402160780,1768553755697,-614.31,0.00040821,10]
[402160781,1768553755707,-637.11,0.00040821,10]
[402160782,1768553755716,-2192.51,0.00040821,10]
[402160783,1768553755725,-2225.78,0.00040821,10]
[402160784,1768553755735,-758.24,0.00040821,10]
[402160785,1768553755744,-2013.58,0.00040821,10]
[402160786,1768553755754,-2864.87,0.00040821,10]
[402160787,1768553755764,-808.72,0.00040821,10]
[402160788,1768553755774,-1567.87,0.00040821,10]
[402160789,1768553755783,-518.17,0.00040821,10]
[402160790,1768553755792,-1811.28,0.00040821,10]
[402160791,1768553755802,-558.81,0.00040821,10]
[402160792,1768553755811,-1071.23,0.00040821,10]
[402160793,1768553755822,-659.01,0.00040821,10]
[402160794,1768553755831,-866.89,0.00040821,10]
[402160795,1768553755840,-1032.65,0.00040821,10]
[402160796,1768553755850,-759.31,0.00040821,10]
[402160797,1768553755859,-637.41,0.00040821,10]
[402160798,1768553755870,-1020.76,0.00040821,10]
[402160799,1768553755879,-1128.16,0.00040821,10]
[402160800,1768553755889,-547.39,0.00040821,10]
[402160801,1768553755898,-7210.62,0.00040821,10]
[402160802,1768553755907,-5211.07,0.00040821,10]
[402160803,1768553755917,-1681.96,0.00040821,10]
[402160804,1768553755926,-729.24,0.00040821,10]
[402160805,1768553755936,-1064.3,0.00040821,10]
[402160806,1768553755945,-5144.07,0.00040821,10]
[402160807,1768553755955,-521.48,0.00040821,10]
[402160808,1768553755965,-532.27,0.00040821,10]
[402160809,1768553755975,-1000.95,0.00040821,10]
[402160810,1768553755984,-2351.16,0.00040821,10]
[402160811,1768553755993,-1000.0,0.00040821,10]
[402160812,1768553756003,-672.3,0.00040821,10]
[402160813,1768553756012,-679.92,0.00040821,10]
[402160814,1768553756022,-642.7,0.00040821,10]
[402160815,1768553756031,-1048.19,0.00040821,10]
[402160816,1768553756042,-2044.82,0.00040821,10]
[402160817,1768553756052,-500.0,0.00040821,10]
[402160818,1768553756063,-735.56,0.00040821,10]
[402160819,1768553756073,-804.46,0.00040821,10]
[402160820,1768553756083,-500.0,0.00040821,10]
[402160821,1768553756093,-793.57,0.00040821,10]
[402160822,1768553756103,-1159.07,0.00040821,10]
[402160823,1768553756112,-2221.23,0.00040821,10]
[402160824,1768553756122,-580.85,0.00040821,10]
[402160825,1768553756131,-941.49,0.00040821,10]
[402160826,1768553756141,-599.94,0.00040821,10]
[402160827,1768553756150,-677.99,0.00040821,10]
[402160828,1768553756160,-1202.41,0.00040821,10]
[402160829,1768553756170,-2033.16,0.00040821,10]
[402160830,1768553756180,-2114.42,0.00040821,10]
[402160831,1768553756189,-1524.13,0.00040821,10]
[402160832,1768553756199,-953.55,0.00040821,10]
[402160833,1768553756208,-556.39,0.00040821,10]
[402160834,1768553756217,-1013.89,0.00040821,10]
[402160835,1768553756227,-1302.19,0.00040821,10]
[402160836,1768553756236,-593.7,0.00040821,10]
[402160837,1768553756246,-859.25,0.00040821,10]
[402160838,1768553756256,-623.79,0.00040821,10]
[402160839,1768553756266,-1282.3,0.00040821,10]
[402160840,1768553756275,-500.0,0.00040821,10]
[402160841,1768553756284,-606.36,0.00040821,10]
[402160842,1768553756294,-1084.77,0.00040821,10]
[402160843,1768553756304,-781.44,0.00040821,10]
[402160844,1768553756313,-616.11,0.00040821,10]
[402160845,1768553756324,-907.52,0.00040821,10]
[402160846,1768553756333,-731.99,0.00040821,10]
[402160847,1768553756343,-849.36,0.00040821,10]
[402160848,1768553756352,-1477.23,0.00040821,10]
[402160849,1768553756361,-643.32,0.00040821,10]
[402160850,1768553756371,-500.0,0.00040821,10]
[402160851,1768553756380,-823.29,0.00040821,10]
[402160852,1768553756389,-802.79,0.00040821,10]
[402160853,1768553756399,-1029.59,0.00040821,10]
[402160854,1768553756408,-725.02,0.00040821,10]
[402160855,1768553756417,-2502.55,0.00040821,10]
[402160856,1768553756426,-713.0,0.00040821,10]
[402160857,1768553756436,-1172.78,0.00040821,10]
[402160858,1768553756446,-1013.39,0.00040821,10]
[402160859,1768553756455,-764.71,0.00040821,10]
[402160860,1768553756464,-761.36,0.00040821,10]
[402160861,1768553756473,-4884.35,0.00040821,10]
[402160862,1768553756483,-629.83,0.00040821,10]
[402160863,1768553756492,-704.6,0.00040821,10]
[402160864,1768553756501,-1262.69,0.00040821,10]
[402160865,1768553756511,-1064.4,0.00040821,10]
[402160866,1768553756519,-564.83,0.00040821,10]
[402160867,1768553756528,-1260.28,0.00040821,10]
[402160868,1768553756537,-662.32,0.00040821,10]
[402160869,1768553756547,-1785.36,0.00040821,10]
[402160870,1768553756556,-1338.09,0.00040821,10]
[402160871,1768553756565,-750.48,0.00040821,10]
[402160872,1768553756576,-897.64,0.00040821,10]
[402160873,1768553756589,-500.0,0.00040821,10]
[402160874,1768553756600,-591.5,0.00040821,10]
[402160875,1768553756609,-1018.43,0.00040821,10]
[402160876,1768553756620,-747.98,0.00040821,10]
[402160877,1768553756629,-764.04,0.00040821,10]
[402160878,1768553756638,-500.0,0.00040821,10]
[402160879,1768553756647,-500.0,0.00040821,10]
[402160880,1768553756657,-442.53111692,0.00040821,10]
[402160881,1768553756666,-6302.12,0.00040821,10]
[402160882,1768553756676,-1736.72,0.00040821,10]
[402160883,1768553756686,-505.41,0.00040821,10]
[402160884,1768553756696,-459.5456125,0.00040821,10]
[402160885,1768553756705,-1002.58,0.00040821,10]
[402160886,1768553756714,-667.66,0.00040821,10]
[402160887,1768553756723,-1041.6,0.00040821,10]
[402160888,1768553756732,-528.13,0.00040821,10]
[402160889,1768553756742,-848.85,0.00040821,10]
[402160890,1768553756752,-1353.3,0.00040821,10]
[402160891,1768553756761,-500.0,0.00040821,10]
[402160892,1768553756771,-1109.73,0.00040821,10]
[402160893,1768553756780,-500.0,0.00040821,10]
[402160894,1768553756789,-623.92,0.00040821,10]
[402160895,1768553756798,-737.24,0.00040821,10]
[402160896,1768553756807,-1021.74,0.00040821,10]
[402160897,1768553756816,-935.75,0.00040821,10]
[402160898,1768553756826,-539.09,0.00040821,10]
[402160899,1768553756835,-907.64,0.00040821,10]
[402160900,1768553756844,-535.61,0.00040821,10]
[402160901,1768553756853,-664.49,0.00040821,10]
[402160902,1768553756862,-686.98,0.00040821,10]
[402160903,1768553756871,-1173.84,0.00040821,10]
[402160904,1768553756880,-600.0,0.00040822,30]
[402160905,1768553756890,-300.0,0.00040822,5]
[402160906,1768553756899,-500.0,0.00040822,14]
[402160907,1768553756908,-150.0,0.00040838,120]
[402160908,1768553756917,-150.0,0.00040849,7]
[402160909,1768553756927,-238.90934185,0.00040875,7]
[402160910,1768553756937,-200.06159783,0.00040875,7]
[402160911,1768553756946,-162.8115885,0.00040875,7]
[402160912,1768553756956,-214.36344643,0.00040875,7]
[402160913,1768553756965,-203.67457519,0.00040875,7]
[402160914,1768553756975,-303.49476013,0.00040875,7]
[402160915,1768553756985,-167.99625046,0.00040875,7]
[402160916,1768553756997,-150.0,0.00040883,7]
[402160917,1768553757006,-2000.0,0.000409,60]
[402160918,1768553757016,-12269.24763685,0.000409,120]
[402160919,1768553757027,-150.0,0.00040919,7]
[402160920,1768553757036,-439.213,0.00040924,59]
[402160921,1768553757047,-209.0,0.0004093,30]
[402160922,1768553757057,-238.90934185,0.00040932,7]
[402160923,1768553757067,-200.06159783,0.00040932,7]
[402160924,1768553757077,-162.8115885,0.00040932,7]
[402160925,1768553757087,-214.36344643,0.00040932,7]
[402160926,1768553757097,-150.0,0.00040932,7]
[402160927,1768553757108,-203.67457519,0.00040932,7]
[402160928,1768553757117,-303.49476013,0.00040932,7]
[402160929,1768553757127,-167.99625046,0.00040932,7]
[402160930,1768553757136,-150.0,0.00040947,7]
[402160931,1768553757146,-1657.26954122,0.00040955,120]
[402160932,1768553757155,-613.6,0.0004098,120]
[402160933,1768553757164,-500.0,0.00040986,60]
[402160934,1768553757174,-238.90934185,0.00040989,7]
[402160935,1768553757183,-200.06159783,0.00040989,7]
[402160936,1768553757193,-162.8115885,0.00040989,7]
[402160937,1768553757203,-214.36344643,0.00040989,7]
[402160938,1768553757213,-203.67457519,0.00040989,7]
[402160939,1768553757223,-303.49476013,0.00040989,7]
[402160940,1768553757234,-167.99625046,0.00040989,7]
[402160941,1768553757243,-150.0,0.00040998,7]
[402160942,1768553757254,-50000.0,0.00041,41]
[402160943,1768553757265,-150.0,0.00041,120]
[402160944,1768553757276,-150.0,0.00041,120]
[402160945,1768553757285,-1000.0,0.00041,120]
[402160946,1768553757295,-304.4291439,0.00041,14]
[402160947,1768553757306,-1688.73086491,0.00041,120]
[402160948,1768553757316,-3375.80896277,0.00041,30]
[402160949,1768553757327,-10000.0,0.00041,30]
[402160950,1768553757336,-2000.0,0.00041,120]
[402160951,1768553757345,-40318.11,0.00041,120]
[402160952,1768553757354,-510.68803574,0.00041,30]
[402160953,1768553757365,-263.0,0.00041,120]
[402160954,1768553757375,-3955.0,0.00041,120]
[402160955,1768553757384,-500.0,0.00041,60]
[402160956,1768553757394,-1785.93535387,0.00041,120]
[402160957,1768553757404,-3611.80762884,0.00041,120]
[402160958,1768553757414,-1272.51640747,0.00041,120]
[402160959,1768553757424,-2123.00477921,0.00041,120]
[402160960,1768553757434,-8021.15476694,0.00041,30]
[402160961,1768553757443,-1000.0,0.00041,120]
[402160962,1768553757453,-1000.0,0.00041,120]
[402160963,1768553757464,-256.40467,0.00041,34]
[402160964,1768553757475,-500.0,0.00041,120]
[402160965,1768553757485,-500.0,0.00041,120]
[402160966,1768553757495,-500.0,0.00041,120]
[402160967,1768553757505,-500.0,0.00041,120]
[402160968,1768553757515,-500.0,0.00041,120]
[402160969,1768553757527,-8228.41,0.00041,30]
[402160970,1768553757536,-150.0,0.00041035,7]
[402160971,1768553757546,-238.90934185,0.00041046,7]
[402160972,1768553757556,-200.06159783,0.00041046,7]
[402160973,1768553757565,-162.8115885,0.00041046,7]
[402160974,1768553757578,-214.36344643,0.00041046,7]
[402160975,1768553757590,-203.67457519,0.00041046,7]
[402160976,1768553757599,-303.49476013,0.00041046,7]
[402160977,1768553757608,-167.99625046,0.00041046,7]
[402160978,1768553757619,-150.0,0.00041058,7]
[402160979,1768553757629,-150.0,0.00041058,7]
[402160980,1768553757638,-300.0,0.00041068,22]